[Event "13th Chennai Open 2022"]
[Site "Chennai"]
[Date "2022.06.20"]
[Round "2.6"]
[White "Shravan Swaminathan"]
[Black "Stupak, Kirill"]
[Result "0-1"]
[ECO "A48"]
[WhiteElo "1662"]
[BlackElo "2440"]
[Annotator "TA"]
[PlyCount "114"]
[EventDate "2022.06.19"]
[EventType "swiss"]
[EventCountry "IND"]
[SourceTitle "playchess.com"]
[Source "ChessBase"]
[SourceQuality "1"]
[TimeControl "5400+30"]

{[%evp 9,114,0,18,-28,-40,-37,-25,-17,11,-25,0,0,0,12,8,17,18,-42,-42,-62,-63,-163,-160,-173,-161,-221,-204,-464,-458,-425,-444,-453,-427,-398,-262,-259,-259,-234,-199,-200,-191,-200,-188,-431,-425,-417,-412,-600,-351,-323,-254,-378,-287,-424,-405,-402,-408,-372,-376,-4814,-548,-645,-610,-662,-653,-576,-645,-636,-638,-608,-629,-596,-562,-579,-577,-779,-761,-743,-674,-810,-782,-757,-700,-29985,-29986,-29986,-29987,-29987,-29978,-29988,-29989,-29989,-29990,-29992,-29993,-29993,-29994,-29994,-29995,-29995,-29996,-29996,-29997,-29997,-29998,-29998,-29999]} 1. d4 {[%emt 0:00:05]} g6 {[%emt 0:00:22]} 2. Nf3 {[%emt 0:00:14]} Bg7 {[%emt 0:00:03]} 3. Bf4 {[%emt 0:00:19]} c5 {[%emt 0:01:16]} 4. e3 {[%emt 0:00:16]} Nf6 {[%emt 0:00:25]} 5. h3 {[%emt 0:00:31]} Qb6 {[%emt 1:30:54]} 6. b3 {[%emt 0:01:10] A48: 1 d4 Nf6 2 Nf3 g6: Torre, London and Colle Systems.} (6. Nc3 $142) 6... Nc6 $11 {[%emt 0:02:41]} 7. c3 {[%emt 0:00:28]} O-O {[%emt 0:00:42]} 8. Be2 {[%emt 0:00:42] Black has an edge.} d5 {[%emt 0:02:57]} 9. O-O {[%emt 0:01:13]} Bf5 {[%emt 0:00:09]} 10. Nbd2 {[%emt 0:03:03]} Rac8 {[%emt 0:02:38]} 11. Rc1 {[%emt 0:10:34]} cxd4 {[%emt 0:03:17]} 12. exd4 {[%emt 0:02:22] [#]} Rfd8 $146 {[%emt 0:02:27]} ({Predecessor:} 12... Nd8 13. a4 Ne6 14. Be3 Qc7 15. Re1 Nf4 16. Bf1 Nd3 17. Bxd3 Bxd3 18. c4 Bf5 {½-½ (53) Broniek,M (2485)-Badolati,S (2518) ICCF email 2019}) 13. Ne5 {[%emt 0:00:59]} (13. b4 $11) 13... Nxe5 $15 {[%emt 0:07:38]} 14. Bxe5 {[%emt 0:07:46]} Qa5 {[%emt 0:00:59]} 15. c4 {[%emt 0:02:09] Black converts the advantage convincingly.} (15. g4 $15 Bd7 16. c4) 15... Bh6 $19 {[%emt 0:02:22]} (15... Qxa2 16. g4 (16. Ra1 Qb2 $17) 16... Be6 17. f4 $15 (17. Ra1 Qb2 $17)) 16. f4 {[%emt 0:04:10] [#]} Nd7 $1 {[%emt 0:00:34]} ({Weaker is} 16... Qxa2 17. g4 (17. Ra1 $2 Qb2 $17) 17... Be6 18. g5 $11) 17. g4 {[%emt 0:08:53]} (17. cxd5 $142 Nxe5 18. dxe5) 17... Nxe5 {[%emt 0:02:08]} 18. dxe5 $2 {[%emt 0:02:50] [#]} (18. gxf5 Nc6 19. Bg4) 18... dxc4 $1 {[%emt 0:01:41]} 19. gxf5 {[%emt 0:52:16]} (19. Qe1 Rxd2) 19... Rxd2 {[%emt 0:00:35]} 20. Qe1 {[%emt 0:00:27]} Qb6+ {[%emt 0:02:34]} 21. Kh1 {[%emt 0:02:26]} Qe3 {[%emt 0:00:45]} 22. Bg4 {[%emt 0:01:44]} Qxe1 {[%emt 0:00:20]} ({Not} 22... Bxf4 23. Qxe3 Bxe3 24. fxg6 $14) 23. Rfxe1 {[%emt 0:07:14]} gxf5 {[%emt 0:00:39]} (23... Bxf4 24. fxg6 Rc6 25. gxf7+ Kf8 26. Rxc4 Rxc4 27. bxc4 $11) 24. Bxf5 {[%emt 0:00:09]} e6 {[%emt 0:00:04]} 25. Be4 {[%emt 0:38:13]} c3 {[%emt 0:00:31]} ({Inferior is} 25... Rxa2 26. Bxb7 Bxf4 27. Bxc8) 26. Bxb7 $2 {[%emt 0:03:32]} (26. Re3) 26... Rc7 {[%emt 0:01:52]} 27. Be4 {[%emt 0:10:00]} Bxf4 {[%emt 0:00:23] And now ...c2 would win.} 28. Bc2 {[%emt 0:00:45]} (28. Rc2 $142) 28... Rc5 {[%emt 0:02:35]} 29. Re4 {[%emt 0:02:06]} Bh6 {[%emt 0:05:40]} 30. Rh4 {[%emt 0:06:02]} (30. Rg1+ $142 Kf8 31. Rg2) 30... Bg7 {[%emt 0:00:01]} 31. Bxh7+ {[%emt 0:01:22]} (31. Rc4 $142 Rxc4 32. bxc4) 31... Kf8 {[%emt 0:56:10]} 32. Rc4 {[%emt 0:01:26]} Rxc4 {[%emt 0:00:22]} 33. bxc4 {[%emt 0:00:11]} Bxe5 {[%emt 0:00:02][%mdl 4096] Endgame Hoping for ...f5. KRB-KRB} 34. Rc2 $2 {[%emt 0:00:45]} (34. Bc2) 34... Rd1+ {[%emt 0:00:01]} (34... f5 $142 35. Rxc3 Bxc3) 35. Kg2 {[%emt 0:00:11]} f5 {[%emt 0:00:09] Against Be4} 36. Bg6 {[%emt 0:00:00]} Rd3 {[%emt 0:01:33]} 37. Bh5 {[%emt 0:00:00]} Rg3+ {[%emt 0:00:01]} 38. Kf2 {[%emt 0:00:00]} Rxh3 {[%emt 0:00:02] ( -> ...Rh2+)} 39. Bf3 {[%emt 0:00:00]} Bd4+ {[%emt 0:57:59]} 40. Kg2 {[%emt 0:00:00]} Rh7 {[%emt 0:00:02]} 41. c5 {[%emt 0:00:00]} Rc7 {[%emt 0:00:12]} 42. c6 {[%emt 0:00:00]} e5 {[%emt 0:00:08]} 43. Bd5 {[%emt 0:00:00]} Ke7 {[%emt 0:00:01]} 44. Kf3 {[%emt 0:00:00]} Kd6 {[%emt 0:00:03]} 45. Bb3 {[%emt 0:00:00]} Rg7 {[%emt 0:02:32] aiming for ...Rg4.} 46. Ba4 {[%emt 0:00:00]} e4+ {[%emt 0:00:02] Black mates.} 47. Ke2 {[%emt 0:00:00]} Rg2+ {[%emt 0:00:17]} 48. Kd1 {[%emt 0:00:00]} Rg1+ {[%emt 0:00:02]} 49. Ke2 {[%emt 0:00:00]} f4 {[%emt 0:00:02][%csl Ge4][%cal Rf4f3]} 50. Rxc3 {[%emt 0:07:30]} Bxc3 {[%emt 0:00:06]} 51. Bc2 {[%emt 0:00:00]} Rg2+ {[%emt 0:59:58]} 52. Kd1 {[%emt 0:00:00]} e3 {[%emt 0:00:02]} 53. Be4 {[%emt 0:00:00]} e2+ {[%emt 0:00:07]} 54. Kc2 {[%emt 0:00:00]} e1=Q+ {[%emt 1:01:09]} 55. Bxg2 {[%emt 0:00:00]} Qd2+ {[%emt 0:00:06]} 56. Kb3 {[%emt 0:00:00]} Kc5 {[%emt 0:00:04]} 57. c7 {[%emt 0:00:00]} Qb2+ {[%emt 0:00:03] Weighted Error Value: White=0.65/Black=0.37} 0-1

[Event "13th Chennai Open 2022"]
[Site "Chennai"]
[Date "2022.06.20"]
[Round "2.7"]
[White "Ajay Karthikeyan"]
[Black "Tejaswini G"]
[Result "1-0"]
[ECO "B90"]
[WhiteElo "2436"]
[BlackElo "1666"]
[Annotator "TA"]
[PlyCount "147"]
[EventDate "2022.06.19"]
[EventType "swiss"]
[EventCountry "IND"]
[SourceTitle "playchess.com"]
[Source "ChessBase"]
[SourceQuality "1"]
[TimeControl "5400+30"]

{[%evp 13,146,8,14,4,97,92,84,86,89,92,89,92,104,90,122,116,118,114,108,100,98,106,116,49,175,158,163,180,175,151,149,158,181,158,142,147,293,294,263,286,287,288,264,253,293,285,275,245,245,223,225,182,233,241,307,246,308,308,306,300,293,292,295,293,314,324,314,319,307,217,217,217,427,441,424,422,411,314,650,513,552,439,643,654,644,611,652,635,535,447,447,404,406,290,447,290,432,358,960,432,624,450,7546,7625,6845,6851,6851,6851,6544,6544,5956,5835,6055,5925,5591,5591,29988,29989,29989,29990,29990,29991,29991,29992,29992,29993,29993,29994,29996,29997,29997,29998,29998,29999,29999]} 1. e4 {[%emt 0:00:03]} c5 {[%emt 0:00:22]} 2. Nf3 {[%emt 0:00:13]} d6 {[%emt 0:00:05]} 3. d4 {[%emt 0:00:11]} cxd4 {[%emt 0:00:07]} 4. Nxd4 {[%emt 0:00:05]} Nf6 {[%emt 0:00:09]} 5. Nc3 {[%emt 0:00:06]} a6 {[%emt 0:00:06]} 6. Rg1 {[%emt 0:02:11]} e5 {[%emt 0:00:12]} 7. Nb3 {[%emt 0:00:04]} Be6 {[%emt 0:06:44]} 8. g4 {[%emt 0:00:05][%cal Bg2g4,Bg4g5][%mdl 32] B90: Sicilian Najdorf: Unusual White 6th moves, 6 Be3 Ng4 and 6 Be3 e5.} Qc7 {[%emt 0:04:37]} (8... d5 $11 {keeps the balance.}) 9. g5 $16 {[%emt 0:02:40]} Nfd7 {[%emt 0:00:08]} 10. Be3 {[%emt 0:07:26] [#] White is better.} Be7 $146 {[%emt 0:02:46]} ({Predecessor:} 10... Nc6 11. Qd2 Rc8 12. Nd5 Bxd5 13. exd5 Ne7 14. c3 Nf5 15. O-O-O Be7 16. Bh3 Nh4 {0-1 (57) Djokic,M (1832)-Milosevic,M (2082) Kragujevac 2016}) 11. h4 {[%emt 0:09:06]} Nb6 {[%emt 0:03:34]} 12. Qd2 {[%emt 0:05:06]} N8d7 {[%emt 0:07:54]} 13. O-O-O {[%emt 0:03:03]} Nc4 {[%emt 0:05:39]} 14. Bxc4 {[%emt 0:01:06]} Qxc4 {[%emt 0:00:19]} 15. Na5 {[%emt 0:08:30][%csl LRb7,LRc4]} Qc7 {[%emt 0:02:01]} 16. Nd5 {[%emt 0:00:57]} Bxd5 {[%emt 0:00:10]} 17. Qxd5 {[%emt 0:00:09]} ({Much weaker is} 17. exd5 $6 O-O $11) 17... Rc8 {[%emt 0:00:15][%csl Gc8][%cal Rc7c2] [#]} 18. c3 {[%emt 0:01:04] White is much more active.} ({White should play} 18. Rd2 $1 $16) 18... b5 {[%emt 0:13:53] A mistake that costs the game.} (18... O-O $1 $14) 19. Nb7 $18 {[%emt 0:04:56]} b4 {[%emt 0:12:01]} 20. Nxd6+ {[%emt 0:03:43]} Bxd6 {[%emt 0:00:24]} 21. Qxd6 {[%emt 0:00:05]} bxc3 {[%emt 0:02:01] [#]} 22. b3 {[%emt 0:01:26]} c2 {[%emt 0:04:23]} 23. Rd5 {[%emt 0:04:16]} Qxd6 {[%emt 0:03:17]} 24. Rxd6 {[%emt 0:00:05]} Ra8 {[%emt 0:01:03]} (24... Nb8 $16 {keeps fighting.} 25. Rd2 Ke7) 25. Kxc2 {[%emt 0:00:44]} Ke7 {[%emt 0:00:09]} 26. Rgd1 {[%emt 0:01:45]} Rhc8+ {[%emt 0:00:08]} 27. Kb2 {[%emt 0:00:30]} Rc7 {[%emt 0:00:08]} 28. R6d5 {[%emt 0:02:17] Prevents Nc5.} a5 {[%emt 0:01:41]} 29. Bd2 {[%emt 0:05:44]} a4 {[%emt 0:05:15]} 30. Bb4+ {[%emt 0:04:07]} Ke8 {[%emt 0:00:09]} 31. bxa4 {[%emt 0:06:06]} Rxa4 {[%emt 0:01:55]} 32. a3 {[%emt 0:03:05]} Ra8 {[%emt 0:01:35]} (32... Ra6 {was called for.} 33. Rd6 Rxd6 34. Rxd6 (34. Bxd6 Rc6 $16) 34... Nf8) 33. h5 {[%emt 0:01:31][%cal Bh4h5,Bh5h6][%mdl 32]} Rac8 {[%emt 0:01:54]} 34. f3 {[%emt 0:00:37]} Ra8 {[%emt 0:01:27]} 35. h6 {[%emt 0:06:17]} g6 {[%emt 0:00:09]} 36. R1d3 {[%emt 0:02:24]} Ra6 {[%emt 0:01:54]} 37. Rd6 {[%emt 0:01:10]} Ra8 {[%emt 0:00:31]} 38. Rc3 {[%emt 0:01:57]} Rb7 {[%emt 0:01:43]} 39. Rdc6 {[%emt 0:01:30] Threatening mate with Rc8+.} Kd8 {[%emt 0:01:05] Prevents Rc8+.} 40. Kc2 {[%emt 0:00:35]} Rba7 {[%emt 0:00:49]} 41. Kd2 {[%emt 0:01:30]} Rb7 {[%emt 0:00:54]} 42. Ke3 {[%emt 0:01:51]} Rba7 $2 {[%emt 0:00:16]} (42... Rb6 43. Rxb6 Nxb6) 43. f4 {[%emt 0:02:33]} exf4+ {[%emt 0:00:17]} 44. Kxf4 {[%emt 0:00:06]} Rb7 {[%emt 0:00:57]} 45. e5 {[%emt 0:02:22]} Nb6 $2 {[%emt 0:01:27]} (45... Rb6 46. R3c4 Rba6) 46. Rd6+ {[%emt 0:00:45]} Ke8 {[%emt 0:00:44]} 47. Rcd3 {[%emt 0:01:36]} Nc4 {[%emt 0:01:51]} (47... Nd7 $142 48. e6 Nf8 49. exf7+ Kxf7) 48. Rc6 {[%emt 0:00:35]} Nb6 {[%emt 0:01:07]} 49. e6 {[%emt 0:01:36]} fxe6 {[%emt 0:00:07]} 50. Rxe6+ {[%emt 0:00:32]} Kf7 {[%emt 0:00:10]} 51. Re4 {[%emt 0:00:32]} Rc8 {[%emt 0:00:54]} 52. Kg4 {[%emt 0:00:37]} Rbc7 {[%emt 0:01:42]} 53. Rd6 {[%emt 0:02:17]} Nc4 {[%emt 0:00:23]} (53... Rb7 $142 54. Bc5 Nd7) 54. Rf6+ {[%emt 0:00:12]} Kg8 {[%emt 0:00:16]} 55. Rfe6 {[%emt 0:00:07]} Kf7 $2 {[%emt 0:00:32]} (55... Nb2 56. Kf3 Rf7+ 57. Ke2 Rfc7) 56. Re7+ {[%emt 0:00:09]} (56. Kf4 $142 {Black must now prevent Re2.} Kg8 57. Re7) 56... Kg8 {[%emt 0:00:46]} 57. Kg3 {[%emt 0:03:15] aiming for a4.} Nb6 {[%emt 0:04:12]} (57... Nxa3 $142 58. Bxa3 Rxe7 59. Bxe7 Re8) 58. Rxc7 {[%emt 0:00:36]} Rxc7 {[%emt 0:00:07][%mdl 4096] Endgame KRB-KRN} 59. Re8+ {[%emt 0:00:05]} Kf7 {[%emt 0:00:10]} 60. Rf8+ {[%emt 0:00:02]} Ke6 {[%emt 0:00:10]} 61. Rf6+ {[%emt 0:00:02]} Kd5 {[%emt 0:00:25]} 62. Rxb6 {[%emt 0:00:08] KRB-KR} Ra7 {[%emt 0:00:05]} 63. Kf4 {[%emt 0:00:20]} Rf7+ {[%emt 0:00:16]} 64. Rf6 {[%emt 0:00:02]} Rxf6+ {[%emt 0:00:10]} 65. gxf6 {[%emt 0:00:04] KB-KPP. White mates.} Ke6 {[%emt 0:00:03]} 66. Kg5 {[%emt 0:00:06]} Kf7 {[%emt 0:00:06]} 67. a4 {[%emt 0:00:26]} Ke6 {[%emt 0:00:08]} 68. a5 {[%emt 0:00:05]} Kf7 {[%emt 0:00:05]} 69. a6 {[%emt 0:00:04]} Ke6 {[%emt 0:00:29]} 70. a7 {[%emt 0:00:03]} Kf7 {[%emt 0:00:05]} 71. a8=Q {[%emt 0:00:08]} Ke6 {[%emt 0:00:05]} 72. Qc6+ {[%emt 0:00:11]} Kf7 {[%emt 0:00:06]} 73. Qd7+ {[%emt 0:00:03]} Kg8 {[%emt 0:00:05]} 74. Qg7# {[%emt 0:00:06] Weighted Error Value: White=0.31/Black=0.40} 1-0

[Event "13th Chennai Open 2022"]
[Site "Chennai"]
[Date "2022.06.20"]
[Round "2.8"]
[White "Gandhi, Aakash"]
[Black "Nitin, S.."]
[Result "0-1"]
[ECO "E61"]
[WhiteElo "1698"]
[BlackElo "2399"]
[Annotator "TA"]
[PlyCount "90"]
[EventDate "2022.06.19"]
[EventType "swiss"]
[EventCountry "IND"]
[SourceTitle "playchess.com"]
[Source "ChessBase"]
[SourceQuality "1"]
[TimeControl "5400+30"]

{[%evp 16,90,33,20,29,25,49,41,68,53,48,43,71,45,38,44,50,62,66,72,81,0,0,0,0,0,37,0,0,-23,-4,-45,-15,-15,-19,-94,-28,-134,0,0,0,0,0,-53,-62,-78,0,-197,1,1,1,1,1,1,1,1,1,1,1,1,1,1,1,-8,-8,-8,-8,-8,-8,-8,-8,-8,-8,-670,-596,-552,-381]} 1. d4 {[%emt 0:00:07]} g6 {[%emt 0:01:44]} 2. c4 {[%emt 0:00:30]} Bg7 {[%emt 0:00:30]} 3. Nf3 {[%emt 0:00:30]} d6 {[%emt 0:00:30]} 4. Nc3 {[%emt 0:00:30]} Nf6 {[%emt 0:00:30]} 5. Bg5 {[%emt 0:00:30][%cal Bc1g5,Bg5h4,Bh4g3][%mdl 32]} h6 {[%emt 0:00:30]} 6. Bh4 {[%emt 0:00:30]} O-O {[%emt 0:00:30]} 7. e3 {[%emt 0:00:30]} Nbd7 {[%emt 0:00:30]} 8. Be2 {[%emt 0:00:30]} g5 {[%emt 0:00:30]} 9. Bg3 {[%emt 0:00:30]} Nh5 {[%emt 0:00:30] E61: King's Indian: Early deviations for White, including Smyslov System.} 10. Qc2 {[%emt 0:00:30][%cal Of3g5] aiming for Nxg5!} e6 {[%emt 0:00:30]} 11. O-O-O {[%emt 0:00:30]} Qe7 {[%emt 0:00:30] White is slightly better.} 12. Nd2 {[%emt 0:00:30]} Nxg3 {[%emt 0:00:30]} 13. hxg3 {[%emt 0:00:30] [#]} f5 $146 {[%emt 0:00:30]} ({Predecessor:} 13... c5 14. d5 Nb6 15. Rh5 Bd7 16. Rdh1 f5 17. dxe6 Bxe6 18. Bf3 Qf7 19. e4 Rae8 20. exf5 Bxf5 {0-1 (20) Szymczak,Z (2295)-Lercel,M (2123) Polanica Zdroj 1999}) 14. Bd3 {[%emt 0:00:30]} Nf6 {[%emt 0:00:30]} 15. e4 {[%emt 0:00:30][%cal Re4f5]} Ng4 {[%emt 0:00:30][%csl LRd4,LRf2]} 16. Nf3 {[%emt 0:00:30]} c6 {[%emt 0:00:30]} 17. Rde1 {[%emt 0:00:30] exf5 is the strong threat.} Qd8 {[%emt 0:00:30]} 18. c5 {[%emt 0:00:30]} (18. Kb1 $16) 18... dxc5 $11 {[%emt 0:00:30]} 19. exf5 {[%emt 0:00:30]} exf5 {[%emt 0:00:30]} (19... cxd4 20. fxe6 Re8 21. Na4 $16 (21. Bh7+ Kh8 $11)) 20. dxc5 {[%emt 0:00:30]} b5 {[%emt 0:00:30]} 21. cxb6 {[%emt 0:00:30]} axb6 {[%emt 0:00:30]} 22. Bc4+ {[%emt 0:00:30]} (22. Re2 $5 {[%cal Rh1d1]}) 22... Kh8 {[%emt 0:00:30]} 23. Be6 {[%emt 0:00:30]} b5 {[%emt 0:00:30] And now ...Bxe6 would win.} 24. Bxc8 {[%emt 0:00:30]} Rxc8 {[%emt 0:00:30]} 25. Re6 {[%emt 0:00:30]} (25. Kb1 $11) 25... b4 {[%emt 0:00:30]} (25... Ra8 $1 $17 {White must now prevent ...b4.} 26. Qb3 (26. Rxc6 Qd7 $17) 26... Nxf2 27. Rhxh6+ Bxh6 28. Rxh6+ Kg7 29. Rxc6 (29. Qe6 $2 Rf6 $19) 29... b4) 26. Rd1 {[%emt 0:00:30]} (26. Nd1 $1 $11) 26... Qb6 {[%emt 0:00:30]} ({And not} 26... bxc3 27. Rxd8 cxb2+ 28. Kb1 Rfxd8 29. Re7 $11) (26... Qa5 $1 $17 27. Na4 Nxf2 $1 {[%mdl 512]} 28. Qxf2 Qxa4) 27. Nd5 {[%emt 0:00:30]} Qa5 {[%emt 0:00:30]} 28. Ne7 {[%emt 0:00:30] Strongly threatening Ng6+.} Qxa2 {[%emt 0:00:30]} 29. Ng6+ {[%emt 0:00:30] Pair of Knights!} (29. Rdd6 $1 $11) 29... Kg8 $1 $15 {[%emt 0:00:30]} 30. Nxf8 {[%emt 0:00:30][%cal Od1d7] Hoping for Rd7!} Rxf8 {[%emt 0:00:30] Chess con chili.} (30... b3 $1 $17 {[%cal Rb3c2]} 31. Qb1 Qa6 32. Qxf5 Nxf2) 31. Rxc6 {[%emt 0:00:30] [#]} (31. Re7 $11) 31... Nxf2 $1 {[%emt 0:00:30][%mdl 512]} 32. Qxf2 $11 {[%emt 0:00:30]} Qa1+ {[%emt 0:00:30]} 33. Kd2 {[%emt 0:00:30]} Rd8+ {[%emt 0:00:30] [#]} 34. Nd4 $1 {[%emt 0:00:30]} Qxb2+ {[%emt 0:00:30]} 35. Ke1 {[%emt 0:00:30]} Qxf2+ {[%emt 0:00:30]} 36. Kxf2 {[%emt 0:00:30]} Rxd4 {[%emt 0:00:30]} 37. Rxd4 {[%emt 0:00:30]} Bxd4+ {[%emt 0:00:30][%mdl 4096] Endgame KR-KB} 38. Ke2 {[%emt 0:00:30]} b3 {[%emt 0:00:30][%cal Bb4b3,Bb3b2][%mdl 32]} 39. Rc7 {[%emt 0:00:30]} b2 {[%emt 0:00:30]} 40. Rb7 {[%emt 0:00:30]} Bg7 {[%emt 0:00:30]} 41. Kd3 {[%emt 0:00:30]} Kh7 {[%emt 0:00:30]} 42. Rb6 {[%emt 0:00:30] [#]} Bf6 $1 {[%emt 0:00:30]} 43. Kc4 {[%emt 0:00:30]} (43. Rb7+ Kg6) 43... Kg6 {[%emt 0:00:30]} 44. Kd5 $2 {[%emt 0:00:30][%mdl 8192] [#]} (44. Kd3 $11) 44... Kh5 $1 $19 {[%emt 0:00:30]} 45. Ke6 {[%emt 0:00:30]} Bd4 {[%emt 0:00:30] Weighted Error Value: White=0.46/Black=0.21 (precise)} 0-1

[Event "13th Chennai Open 2022"]
[Site "Chennai"]
[Date "2022.06.20"]
[Round "2.9"]
[White "Srihari L R"]
[Black "Jai Sankar Subramanian"]
[Result "1-0"]
[ECO "A15"]
[WhiteElo "2404"]
[BlackElo "1635"]
[Annotator "TA"]
[PlyCount "66"]
[EventDate "2022.06.19"]
[EventType "swiss"]
[EventCountry "IND"]
[SourceTitle "playchess.com"]
[Source "ChessBase"]
[SourceQuality "1"]
[TimeControl "5400+30"]

{[%evp 9,66,-29,-15,-43,-21,-8,-21,-21,-16,-18,0,-89,9,-13,0,-58,-47,-57,-52,-69,4,0,0,0,0,15,0,17,30,38,45,38,93,59,43,68,106,91,119,113,113,113,111,108,164,154,164,166,164,166,182,170,173,89,104,0,992,977,1063]} 1. Nf3 {[%emt 0:00:16]} Nf6 {[%emt 0:00:03]} 2. c4 {[%emt 0:00:10]} g6 {[%emt 0:00:06]} 3. b4 {[%emt 0:00:08]} Bg7 {[%emt 0:00:10]} 4. Bb2 {[%emt 0:00:08]} O-O {[%emt 0:00:13]} 5. g3 {[%emt 0:00:08]} d5 {[%emt 0:00:31]} 6. Na3 {[%emt 0:02:55] A15: English Opening: 1...Nf6.} a5 {[%emt 0:02:04]} 7. b5 {[%emt 0:03:03]} c6 {[%emt 0:01:40]} 8. Bg2 {[%emt 0:01:45] The position is equal.} dxc4 {[%emt 0:01:00]} 9. bxc6 {[%emt 0:01:08]} Nxc6 {[%emt 0:00:03]} 10. O-O {[%emt 0:05:27]} (10. Nxc4 $11 {remains equal.} Be6 11. Ne3) 10... Nb4 {[%emt 0:08:49] [#]} (10... Be6 $1 $17) 11. Ne5 $146 {[%emt 0:15:10]} ({Predecessor:} 11. Nxc4 Be6 12. d3 Rc8 13. a3 Nc6 14. Qb3 Qc7 15. Ng5 Bxc4 16. Qxc4 h6 17. Nf3 {½-½ (77) Will,M (2025)-Schaefer,S (2001) Germany 2018}) 11... Rb8 {[%emt 0:14:51] ...b5 is the strong threat.} 12. Nexc4 {[%emt 0:07:46]} (12. Naxc4 $11 b5 13. Ne3) 12... Be6 {[%emt 0:06:51]} 13. Be5 {[%emt 0:01:43]} Rc8 {[%emt 0:01:53]} 14. d3 {[%emt 0:00:24]} Bd5 {[%emt 0:01:26]} (14... Rc5 $1 $15 15. Bb2 (15. Bxb7 Rxe5 16. Nxe5 Qb8 $17) 15... b5) 15. Bh3 {[%emt 0:11:51]} e6 {[%emt 0:03:42]} 16. Qb1 {[%emt 0:05:44]} Ne8 {[%emt 0:17:19]} 17. Qb2 {[%emt 0:02:37]} Bxe5 {[%emt 0:08:13]} 18. Nxe5 {[%emt 0:09:28][%cal Bc4e5,Be5g4,Bg4e3][%mdl 32]} Nc6 {[%emt 0:10:52]} 19. Ng4 {[%emt 0:01:14][%cal Rg4h6]} h5 {[%emt 0:04:37]} 20. Ne3 {[%emt 0:04:17]} Qf6 {[%emt 0:11:13]} (20... Ne7 $14) 21. Rab1 {[%emt 0:06:17]} Qxb2 {[%emt 0:03:21]} 22. Rxb2 {[%emt 0:00:01]} Rc7 {[%emt 0:00:38]} 23. Nb5 {[%emt 0:04:14]} Re7 {[%emt 0:01:09]} 24. Nxd5 {[%emt 0:01:06]} exd5 {[%emt 0:00:01]} 25. Rfb1 {[%emt 0:00:09]} Nf6 {[%emt 0:01:23]} 26. Nd6 {[%emt 0:00:29]} Nb4 {[%emt 0:00:40]} (26... Kg7 $16) 27. a3 $18 {[%emt 0:00:16]} Nc6 {[%emt 0:00:32]} 28. e3 {[%emt 0:00:42][%cal Be2e3,Be3e4][%mdl 32]} Ne5 {[%emt 0:00:31]} 29. Bf1 {[%emt 0:00:32]} (29. Rxb7 $6 Rxb7 30. Rxb7 Rd8 31. Nxf7 Nxf7 $14) 29... d4 {[%emt 0:00:27]} 30. e4 {[%emt 0:00:24]} ({Don't play} 30. Nxb7 $6 dxe3 31. fxe3 a4 $11) ({But not} 30. exd4 Nf3+ 31. Kg2 Nxd4 $16) ({Much less strong is} 30. Rxb7 $6 Rxb7 31. Nxb7 (31. Rxb7 Rd8 $14) 31... dxe3 $14) 30... Rc7 {[%emt 0:00:25] [#]} 31. Rxb7 {[%emt 0:16:28]} ({White should play} 31. f4 $1 $18 {[%cal Rf4e5]} Neg4 32. Rxb7) 31... Rc2 {[%emt 0:00:45] [#]} 32. R7b3 {[%emt 0:00:30]} (32. R7b2 $1 $16 {[%cal Rb2c2]} Rxb2 33. Rxb2) 32... Rb2 {[%emt 0:00:27][%mdl 8192]} 33. R3xb2 {[%emt 0:00:00]} Rd8 {[%emt 0:00:01] Weighted Error Value: White=0.21 (precise) /Black=0.24 (precise)} 1-0

[Event "13th Chennai Open 2022"]
[Site "Chennai"]
[Date "2022.06.20"]
[Round "2.10"]
[White "Srijit Paul"]
[Black "Swapna C N"]
[Result "1-0"]
[ECO "B33"]
[WhiteElo "2399"]
[BlackElo "1628"]
[Annotator "TA"]
[PlyCount "53"]
[EventDate "2022.06.19"]
[EventType "swiss"]
[EventCountry "IND"]
[SourceTitle "playchess.com"]
[Source "ChessBase"]
[SourceQuality "1"]
[TimeControl "5400+30"]

{[%evp 24,53,0,-160,0,0,0,0,0,0,0,0,234,237,236,245,243,234,214,217,204,203,205,240,245,220,1928,1773,29985,29986,29986,29987]} 1. e4 {[%emt 0:00:09]} c5 {[%emt 0:00:14]} 2. Nf3 {[%emt 0:00:09][%cal Bg1f3,Bf3d4,Bd4b5][%mdl 32]} Nc6 {[%emt 0:00:13]} 3. d4 {[%emt 0:00:45]} cxd4 {[%emt 0:00:23]} 4. Nxd4 {[%emt 0:00:07]} e5 {[%emt 0:00:38]} 5. Nb5 {[%emt 0:00:07]} d6 {[%emt 0:00:09]} 6. N1c3 {[%emt 0:00:53][%cal Bb1c3,Bc3d5,Bd5f6][%mdl 32]} a6 {[%emt 0:00:30]} 7. Na3 {[%emt 0:00:06]} Nf6 {[%emt 0:01:09]} 8. Bg5 {[%emt 0:00:38]} b5 {[%emt 0:00:06]} 9. Bxf6 {[%emt 0:00:05]} gxf6 {[%emt 0:00:08]} 10. Nd5 {[%emt 0:00:04]} f5 {[%emt 0:00:38]} 11. Bxb5 {[%emt 0:08:10]} axb5 {[%emt 0:00:15]} 12. Nxb5 {[%emt 0:00:03]} Ra4 {[%emt 0:00:37]} 13. c4 $2 {[%emt 0:00:10] [#]} ({White should play} 13. Nbc7+ $11 Kd7 14. O-O) 13... Qa5+ $2 {[%emt 0:10:40] B33: Sicilian: Pelikan and Sveshnikov Variations.} ({Black should try} 13... Rxc4 $17 14. O-O Be7) 14. b4 $1 $11 {[%emt 0:00:08]} Nxb4 {[%emt 0:01:48]} 15. Nf6+ {[%emt 0:06:00] Pair of Knights!} Kd8 {[%emt 0:04:16] The position is equal.} 16. O-O {[%emt 0:00:07] [#]} Qa6 $146 {[%emt 0:05:39] [#] Threatens to win with ...Be7.} (16... Rxa2 17. Rxa2 Nxa2 18. Nxd6 $16) ({Predecessor:} 16... Bd7 17. Nxd6 Bxd6 18. Qxd6 Qc7 19. Qd2 Kc8 20. a3 Nc6 21. Nd5 Qa7 22. Rab1 Ra6 {1-0 (33) Potrata,J-Zatsch,A ICCF corr 1983}) 17. a3 {[%emt 0:06:29] The board is on fire.} Be6 $2 {[%emt 0:09:03]} (17... Be7 $11 {and Black is okay.} 18. axb4 Rxa1 19. Qxa1 Qxa1 20. Rxa1 Bxf6) 18. axb4 $18 {[%emt 0:05:14]} Rxa1 {[%emt 0:04:01]} 19. Qxa1 {[%emt 0:00:21]} Qxa1 {[%emt 0:00:26]} 20. Rxa1 {[%emt 0:00:05]} Bxc4 {[%emt 0:00:45]} 21. Ra8+ {[%emt 0:00:41]} Ke7 {[%emt 0:00:44]} 22. Nd5+ {[%emt 0:00:05]} Bxd5 {[%emt 0:03:44]} 23. exd5 {[%emt 0:00:11]} h5 {[%emt 0:07:07]} 24. Na7 {[%emt 0:00:05]} e4 $2 {[%emt 0:07:12]} (24... Bg7 $2 25. Nc6+ Kf6 26. Rxh8 Bxh8 27. b5 $18) (24... Kd7 25. Nc6 Kc7) 25. Nc6+ {[%emt 0:00:11]} Kd7 {[%emt 0:04:03]} 26. Ra7+ {[%emt 0:00:07]} Ke8 {[%emt 0:01:29]} 27. b5 {[%emt 0:00:05] Black got outplayed after the opening.  Weighted Error Value: White=0.22 (precise) /Black=1.14} 1-0